Cogmind - Beta 15 @@@ ROGUE MODE // 2025.05.21 @ 19:28:07 Player: celerysam Result: Destroyed by 51-RPE(R) with Subdweller Machine Gun Performance ------------- Evolutions (0) 0 Regions Visited (2) 400 Robots Destroyed (27) 135 Value Destroyed (642) 642 Prototype IDs (11) 220 Alien Tech Used (0) 0 Bonus (0) 0 TOTAL SCORE: 1397 Bonus ------- None Cogmind --------- Core Integrity 0/250 Matter 114/300 Energy 250/250 System Corruption 0% Temperature Cool (0) Movement Rolling (135) Ox3 Location -10/Subcaves Parts ------- > --- POWER (1) -------- Ion Engine > --- PROPULSION (2) --- Wheel Compact Wheel > --- UTILITY (2) ------ Huge Storage Unit Gun Armor > --- WEAPON (2) ------- Light Cannon Light Cannon > --- INVENTORY (25) --- Subdweller Power Source Light Treads Light Treads Spiked Treads Wheel Wheel Compact Wheel Compact Wheel Subdweller Monowheel Heat Sink Improved Heat Sink Improved Heat Sink Small Storage Unit Structural Scanner Signal Interpreter Seismic Detector ECM Suite Scrap Shield Hacking Suite EM Pulse Gun Particle Gun Battle Rifle Barrage Gun Light Cannon Peak State ------------ > --- POWER ------------ Light Nuclear Core > --- PROPULSION ------- Wheel Compact Wheel > --- UTILITY ---------- Huge Storage Unit Gun Armor > --- WEAPON ----------- Assault Rifle Light Cannon Battle Cannon Battle Cannon > --- INVENTORY -------- Ion Engine Light Treads Light Treads Spiked Treads Wheel Wheel Compact Wheel Compact Wheel Heat Sink Improved Heat Sink Improved Heat Sink Small Storage Unit Large Storage Unit Structural Scanner Signal Interpreter Seismic Detector ECM Suite Hacking Suite EM Pulse Gun Particle Gun Battle Rifle Barrage Gun Light Cannon Light Cannon [Rating: 24] Favorites ----------- Power Light Nuclear Core Engine Ion Engine Power Core Light Nuclear Core Propulsion Wheel Leg Aluminum Leg Wheel Wheel Utility Huge Storage Unit Device Heat Sink Storage Huge Storage Unit Protection Gun Armor Weapon Light Cannon Energy Gun Particle Gun Ballistic Gun Assault Rifle Ballistic Cannon Light Cannon Build | -11 -10 -10 ------- Run | Yrd Mat Sub Slots Evolved . | . . . Power . | . . . Propulsion . | . . . Utility . | . . . Weapon . | . . . Parts Attached 18 | 6 6 6 Power 3 | 1 1 1 Engine 2 | 1 . 1 Core 1 | . 1 . Reactor . | . . . Propulsion 4 | 2 2 . Treads . | . . . Leg 2 | 2 . . Wheel 2 | . 2 . Hover . | . . . Flight . | . . . Utility 4 | 1 2 1 Device 1 | . 1 . Storage 2 | 1 1 . Processor . | . . . Hackware . | . . . Protection 1 | . . 1 Artifact . | . . . Weapon 7 | 2 1 4 Energy Gun 2 | 1 1 . Energy Cannon . | . . . Ballistic Gun 1 | 1 . . Ballistic Cannon 4 | . . 4 Launcher . | . . . Special Weapon . | . . . Impact Weapon . | . . . Slashing Weapon . | . . . Piercing Weapon . | . . . Special Melee Weapon . | . . . Unidentified Prototypes . | . . . Parts Lost 5 | . 1 4 Power 2 | . 1 1 Propulsion . | . . . Utility . | . . . Weapon 3 | . . 3 Highest Loss Streak 2 | . 1 2 To Critical Strikes . | . . . Average Backups 17 | 4 11 23 Power 1 | . 1 1 Propulsion 6 | 3 4 7 Utility 6 | . 3 9 Weapon 3 | . 1 5 Tool/Special . | . . . Unused Backups 23 | . 1 22 Power 1 | . . 1 Propulsion 8 | . . 8 Utility 9 | . . 9 Weapon 5 | . 1 4 Tool/Special . | . . . Average Slot Usage (%) 99 | . 98 99 Engine 1 | . . 1 Core 11 | . 12 10 Leg 7 | . 13 . Wheel 18 | . 14 23 Device 8 | . 12 3 Storage 12 | . 14 11 Protection 4 | . . 8 Energy Gun 8 | . 14 2 Ballistic Gun 9 | . 14 4 Ballistic Cannon 15 | . . 32 Peak Build Rating 24 | 6 12 24 Average Rating 15 | 3 10 21 On Entrance 6 | . 6 12 Naked Turns . | . . . Heaviest Build 101 | 11 91 101 Greatest Support 26 | 20 26 26 Greatest Overweight (x) 3 | . 3 3 Average Overweight (x) 2 | . 1 3 Largest Inventory Capacity 25 | 8 25 25 Average Capacity 20 | 6 16 25 Most Carried 25 | 6 22 25 Average Carried 17 | 4 11 24 Final Capacity 25 | 8 25 25 Final Carried 25 | 6 22 25 Class Distribution -------------------- 62% | Mutant 37% | Gunner Dominant Class ---------------- Mutant | -10/Materials Gunner | -10/Subcaves Resources | -11 -10 -10 ----------- Run | Yrd Mat Sub Matter Collected 775 | 210 192 373 Remotely . | . . . Salvage Created 613 | . 423 190 Parts 50 | . 35 15 Haulers Intercepted 1 | . 1 . Recyclers Shooed . | . . . Parts Field Recycled . | . . . Retrieved Matter . | . . . Parts Self-Destructed 9 | . . 9 Prevented . | . . . Kills | -11 -10 -10 ------- Run | Yrd Mat Sub Combat Hostiles Destroyed 20 | . 10 10 Guns 11 | . 10 1 Cannons 9 | . . 9 Classes Destroyed 7 | . 6 1 Worker 2 | . 2 . Hauler 1 | . 1 . Operator 2 | . 2 . Watcher 2 | . 2 . Swarmer 8 | . 3 5 Grunt 7 | . 7 . Subdweller 5 | . . 5 Best Kill Streak 4 | . 4 3 Combat Bots Only 4 | . 4 3 Max Kills in Single Turn 4 | . 4 1 Gunslinging . | . . . Exploded . | . . . Melee . | . . . Uniques/NPCs Destroyed . | . . . Combat | -11 -10 -10 -------- Run | Yrd Mat Sub Hostile Shots Fired 85 | . 40 45 Missed 26 | . 11 15 Hits 59 | . 29 30 Projectile 59 | . 29 30 AOE 1 | . . 1 Critical Strikes 1 | . 1 . Damage Taken 1032 | . 423 609 Core 252 | . 104 148 Absorbed by Shields . | . . . Core Remaining (%) 100 | 100 . . Volleys Fired 64 | . 31 33 Largest 4 | . 2 4 Hottest 126 | . 85 126 Shots Fired 172 | . 60 112 Gun 67 | . 60 7 Cannon 105 | . . 105 Launcher . | . . . Special . | . . . Kinetic 143 | . 31 112 Thermal 29 | . 29 . Explosive . | . . . Electromagnetic . | . . . Robot Hit Streak 8 | . 8 8 Robot Miss Streak 5 | . 3 5 Penetration Max . | . . . Secondary Targets 4 | . 4 . Max Gunslinging Chain 1 | . 1 . Shots Hit Robots 86 | . 35 51 Core Hits 36 | . 22 14 Critical Kills . | . . . Critical Parts Destroyed . | . . . Critical Strikes 2 | . . 2 Blast 2 | . . 2 Melee Attacks . | . . . Impact . | . . . Slashing . | . . . Piercing . | . . . Sneak Attacks . | . . . Combat Hostiles . | . . . Follow-up Attacks . | . . . Damage Inflicted 1681 | . 923 758 Guns 545 | . 504 41 Cannons 717 | . . 717 Explosions 419 | . 419 . Melee . | . . . Ramming . | . . . Kinetic 943 | . 185 758 Thermal 319 | . 319 . Explosive 419 | . 419 . Electromagnetic . | . . . Impact . | . . . Slashing . | . . . Piercing . | . . . Highest Corruption . | . . . Average Corruption . | . . . Corruption Purged . | . . . Corruption Blocked . | . . . Overload Shots . | . . . Overflow Damage 39 | . 34 5 Projectiles 5 | . . 5 Explosions 34 | . 34 . Melee . | . . . Knockbacks 9 | . . 9 Impact . | . . . Kinetic 9 | . . 9 Secondary . | . . . Self-Inflicted Damage . | . . . Shots . | . . . Rammed . | . . . Targets Rammed . | . . . Kicked . | . . . Crushed . | . . . Highest Temperature 45 | . 45 30 Average Temperature 18 | . 28 11 Received Heat Transfer 207 | . 141 66 Siege Activations . | . . . Martial Activations . | . . . Shielding Activations . | . . . Robots Disrupted . | . . . Combat Hostiles . | . . . Robots Corrupted . | . . . Combat Hostiles . | . . . Parts Fried . | . . . Impact Corruptions . | . . . Robots Melted . | . . . Combat Hostiles . | . . . Parts Melted . | . . . Heat Transferred 729 | . 729 . Parts Sabotaged . | . . . Parts Stolen . | . . . Parts Stripped . | . . . Power Chain Reactions . | . . . Alert | -11 -10 -10 ------- Run | Yrd Mat Sub Maximum Alert Level . | . . . Low Security (%) 100 | 100 100 . Level 1 . | . . . Level 2 . | . . . Level 3 . | . . . Level 4 . | . . . Level 5 . | . . . High Security . | . . . Max Security . | . . . Peak Influence 162 | . 162 . Initial . | . . . Average 47 | . 49 . Influence Increases 488 | . 368 120 Destroy 0b10 Robot/C 300 | . 200 100 Destroy 0b10 Robot/NC 35 | . 35 . Destroy Leader 76 | . 56 20 Disable Machine 45 | . 45 . Destroy Structure 32 | . 32 . Influence Decreases 488 | . 346 142 Entered New Map 11 | . . 11 Time Decay 455 | . 346 109 Lost Part 22 | . . 22 Squads Dispatched 2 | . 2 . Investigation 1 | . 1 . Extermination . | . . . Reinforcement 1 | . 1 . Assault . | . . . Garrison . | . . . Intercept . | . . . Searches Triggered . | . . . Construction Impeded . | . . . Haulers Reinforced . | . . . Active Scanning Responses . | . . . Cargo Convoy Interrupts . | . . . Stealth | -11 -10 -10 --------- Run | Yrd Mat Sub Distress Signals . | . . . Communications Jammed . | . . . Distress Signals . | . . . Times Spotted 27 | . 15 12 Peak Tracking Total 7 | . 7 4 Tactical Retreats . | . . . Traps | -11 -10 -10 ------- Run | Yrd Mat Sub Traps Triggered 4 | . 3 1 Indirectly . | . . . Trap Hack Attempts . | . . . Triggered . | . . . Disarmed . | . . . Reprogrammed . | . . . Reused . | . . . Traps Extracted . | . . . Installed . | . . . Triggered . | . . . Machines | -11 -10 -10 ---------- Run | Yrd Mat Sub Machines Disabled 4 | . 3 1 Max in Single Turn 2 | . 2 1 Machines Repaired . | . . . Machines Dismantled . | . . . Machines Sabotaged . | . . . Overloaded Fab Kills . | . . . Hacking | -11 -10 -10 --------- Run | Yrd Mat Sub Machines Accessed 4 | . 2 2 Terminals 1 | . 1 . Fabricators . | . . . Repair Stations . | . . . Recycling Units 1 | . 1 . Scanalyzers . | . . . Garrison Access . | . . . Total Hacks 9 | . 4 5 Successful 8 | . 3 5 Failed 1 | . 1 . Catastrophic . | . . . Database Lockouts . | . . . Manual 1 | . 1 . Terminals 1 | . 1 . Fabricators . | . . . Repair Stations . | . . . Recycling Units 3 | . 3 . Scanalyzers . | . . . Garrison Access . | . . . Terminal Hacks 5 | . . 5 Record 4 | . . 4 Proto ID Catalog 1 | . . 1 Fabricator Hacks . | . . . Repair Station Hacks . | . . . Recycling Unit Hacks 2 | . 2 . Report Inventory 1 | . 1 . Retrieve Components 1 | . 1 . Scanalyzer . | . . . Garrison Access Hacks . | . . . Unauthorized Hacks 1 | . 1 . Terminals 1 | . 1 . Botnet 1 | . 1 . Fabricators . | . . . Repair Stations . | . . . Recycling Units . | . . . Scanalyzers . | . . . Garrison Access . | . . . Data Cores Recovered 1 | . 1 . Used . | . . . Hacking Detections 1 | . 1 . Full Trace Events . | . . . Feedback Events . | . . . Feedback Blocked . | . . . Robot Schematics Acquired . | . . . Robots Built . | . . . Authchips . | . . . Time . | . . . Total Robot Build Rating . | . . . Part Schematics Acquired . | . . . Parts Built . | . . . Authchips . | . . . Time . | . . . Total Part Build Rating . | . . . Parts Repaired . | . . . Time . | . . . Parts Recycled . | . . . Recycled Matter . | . . . Retrieved Matter . | . . . Retrieved Components 9 | . 9 . Parts Scanalyzed . | . . . Part Schematics Acquired . | . . . Parts Damaged . | . . . Bothacking | -11 -10 -10 ------------ Run | Yrd Mat Sub Used RIF Installer . | . . . Robots Hacked . | . . . Non-combat . | . . . Combat . | . . . Robot Hacks Applied . | . . . Relay Couplers Released . | . . . Fabnet Peak Effective % . | . . . Robots Rewired . | . . . Allies Hacked . | . . . Hacks Repelled . | . . . Allies | -11 -10 -10 -------- Run | Yrd Mat Sub Total Allies . | . . . Largest Group . | . . . Highest-Rated Group . | . . . Highest-Rated Ally . | . . . Total Orders . | . . . Ally Attacks . | . . . Total Damage . | . . . Kills . | . . . Allies Corrupted . | . . . Allies Melted . | . . . Intel | -11 -10 -10 ------- Run | Yrd Mat Sub Active Infowar (turns) . | . . . Robot Analysis Total . | . . . Derelict Logs Recovered 2 | . . 2 Drone Launches . | . . . Drone Recoveries . | . . . Exploration | -11 -10 -10 ------------- Run | Yrd Mat Sub Turns Passed 2396 | 64 1232 1100 Spaces Moved 1612 | 54 844 714 Core 25 | 25 . . Treads . | . . . Legs 429 | 29 400 . Wheels 1158 | . 444 714 Hover . | . . . Flight . | . . . Fastest Speed 50 | 50 120 135 Average Speed 129 | 87 127 135 Slowest Speed 135 | 120 135 135 Overloaded Moves . | . . . Propulsion Burnouts . | . . . Robots Hopped . | . . . Potential Cave-ins . | . . . Cave-ins Triggered . | . . . Exploration Rate (%) 53 | 3 97 60 Regions Visited 2 Branch Regions 1 Pre-discovered Areas 3 | . . 3 Known Exits Taken . | . . . Unknown Exits Taken 2 | 1 1 . Scrap Searched 3 | . . 3 Spaces Dug . | . . . Terrain Destroyed 37 | . 36 1 Melee . | . . . Projectile 1 | . . 1 AOE 36 | . 36 . Terrain Rammed . | . . . Walls Destroyed . | . . . Machines Disabled . | . . . Actions | -11 -10 -10 --------- Run | Yrd Mat Sub Total 1777 | 67 936 774 Wait 43 | 2 36 5 Move 1610 | 53 843 714 Hop . | . . . Pick Up 32 | 6 17 9 Fast Attach 9 | 6 2 1 Attach 4 | . . 4 Detach 1 | . . 1 Swap 7 | . 4 3 Drop 7 | . 3 4 Fire 64 | . 31 33 Melee . | . . . Ram . | . . . Kick . | . . . Crush . | . . . Escape Stasis . | . . . Rewire . | . . . Trap . | . . . Miscellaneous . | . . . Route ------- -11/Scrapyard -10/Materials (discovered 5 exits: [*Mat x3] / [*Min] / *Sub) -10/Subcaves (discovered 1 exit: [*Mat]) History --------- Turn | Location | Event 9 | -11/Scrapyard | Discovered new exit (range 15) 65 | -11/Scrapyard | Entered Materials 299 | -10/Materials | Discovered new exit (range 10) 305 | -10/Materials | Build established: Mutant 422 | -10/Materials | Discovered new exit (range 9) 533 | -10/Materials | Discovered new exit (range 7) 626 | -10/Materials | Discovered new exit (range 6) 748 | -10/Materials | Discovered new exit (range 3) 1297 | -10/Materials | Entered Subcaves 1498 | -10/Subcaves | Visited 4L-MR0's lab 1520 | -10/Subcaves | Found Gun Armor 1522 | -10/Subcaves | Attached Gun Armor, gained temporary slots: Weapon x2 1588 | -10/Subcaves | Learned location of Storage (-9) 1595 | -10/Subcaves | Learned location of Zion (-7) 1595 | -10/Subcaves | Met a Zionite searching for "candidates" 1614 | -10/Subcaves | Core integrity fell below 50% 1800 | -10/Subcaves | Build established: Gunner 1809 | -10/Subcaves | Visited Clippyterm 1813 | -10/Subcaves | Learned location of Deep Caves (-7) 1813 | -10/Subcaves | Learned Factory emergency access door positions 2071 | -10/Subcaves | Discovered new exit (range 15) 2199 | -10/Subcaves | Core integrity fell below 20% 2216 | -10/Subcaves | Shifting Twisted Machinery released Lgt. Humpback 2229 | -10/Subcaves | Shifting Twisted Machinery released Sub. Optics 2281 | -10/Subcaves | A swath of the cavern ceiling suddenly collapsed 2397 | -10/Subcaves | Destroyed by 51-RPE(R) with Subdweller Machine Gun Last Messages --------------- 02251_ Acquired 37 matter. 02251_ Lgt. Nuclear Core destroyed. 02252_ S-10 Pest destroyed. 02253_ Battle Cannon destroyed. 02256_ Temporary Weapon slot lost. 02257_ Lgt. Assault Rifle fries itself beyond repair. 02259_ F6-IVK(R) destroyed. 02262_ Subatomizers dissect the Flight Unit. 02263_ Lgt. Assault Rifle fries itself beyond repair. 02263_ Dropped Lrg. Storage Unit. 02267_ Flight Unit fries itself beyond repair. 02268_ Acquired Scrap Shield. 02272_ Acquired 2 matter. A swath of the cavern ceiling suddenly collapses. 02382_ Destroyed Sub. Optics. 02382_ Battle Cannon destroyed. 02385_ Temporary Weapon slot lost. Map ----- +----------------------------------------------------+ | ?###""" #???###?# #??# #???????????????????? | | ?#"" " ##### ### #### #???????????????????? | | ?# ! """ #???????????????????? | | ?#""""" " # ##???????????????????? | | # " "## ##"# " ### #???????????????????? | | # " "# ##?##"" "#?## #???????????????????? | | ##"#""# #### " ! "#?# ##???????????????????? | | ?###""" & & #?## #????????????????????? | | ??#""""# & "#?## ##????????????????????? | | ??# ""## ##"" ""% ""#?# #"##???????????????????? | | ??#"""?#######"#"# ###?##"#"#???????????????????? | | ??#! ????????#### #????###"#???????????????????? | | ??##???????????#% ##????##""#???????????????????? | | ???????????????# ##????##"#"#???????????????????? | | ?????????????### "####?##""####??????????????????? | | ????????????## ###"#?#"#""""##?????????????????? | | ????????????# """""#"## ""####?????????????????? | | ????????????# "#"#"""#"" ##???????##???????????? | | ????????????###"" "###"""# ##?????? #???????????? | | ??????????????####""####"# ###???? ????????????? | | ??????????????????#"######"#"#### #?????????? | | ???????????????????### ?##""""""#???????????????? | | ????????????????????# #?##"#""##???????????????? | | ????????????????????# ####"#??????????????????? | | ???????????????# ## #;#;##?????????????????? | | ?????????????# @ ; #?????????????????? | | ?????????????# ## #????????????????? | | ????????????# R ?????## #?????????????? | | ???????????%% %??????????# #?????????????? | | ?????????????????????????###########?????????????? | | ?????????????????????????????????????????????????? | | ?????????????????????????????????????????????????? | | ?????????????????????????????????????????????????? | | ?????????????????????????????????????????????????? | | ?????????????????????????????????????????????????? | | ?????????????????????????????????????????????????? | | ?????????????????????????????????????????????????? | | ?????????????????????????????????????????????????? | | ?????????????????????????????????????????????????? | | ?????????????????????????????????????????????????? | | ?????????????????????????????????????????????????? | | ?????????????????????????????????????????????????? | | ?????????????????????????????????????????????????? | | ?????????????????????????????????????????????????? | | ?????????????????????????????????????????????????? | | ?????????????????????????????????????????????????? | | ?????????????????????????????????????????????????? | | ?????????????????????????????????????????????????? | | ?????????????????????????????????????????????????? | | ?????????????????????????????????????????????????? | +----------------------------------------------------+ Best States ------------- Heat Dissipation 35 Energy Generation 14 Energy Capacity 250 Matter Stores 300 Matter Capacity 300 Sight Range 16 Terrain Scan Density 10 Armor Coverage 60 Evasion (%) 55 Item Schematics ----------------- None Robot Schematics ------------------ None Fabricated ------------ Nothing Repaired ---------- Nothing Alien Tech Used ----------------- None Achievements -------------- None Challenges ------------ None Game ------ Seed ShiftFlyingTurbovents Manual? 0 Play Time 00:16:57 Cumulative 256.4 hours Start 2025.05.21 @ 19:05:30 End 2025.05.21 @ 19:28:07 Sessions 1 Manual Loads 0 Difficulty Rogue Special Mode None Game No. 383 Rogue 383 Adventurer 0 Explorer 0 Win Type - Total 1 Types 1/0/0/0/0/0/0/0/0/0 Lore% 61 Gallery% 62 Achievement% 43 Wizard Run 0 Options --------- Layout 1 ASCII 0 Keyboard 0 Movement Mouse Keybinds 0 Fullscreen 2 Font 24/Smallcaps Map View 50x35 Zoom Use 0% Tactical HUD 1 Map Filters NONE Filters NONE Steam 1 RUN: 8498f597-cede-4450-880a-cef710d4aec5